fUST/lending_fUST_20241010
["ID","MTS","AMOUNT","RATE_DAILY","PERIOD"]
[340107220,1728568048068,-189.467817,0.00044658,2]
[340107221,1728568048090,-369.264248,0.00044658,2]
[340107222,1728568048113,-5417.58,0.00045,120]
[340107223,1728568048134,-17995.20246606,0.00045341,120]
[340107224,1728568048155,-3526.36256883,0.00046867,28]
[340107225,1728568048177,-155.0,0.00047,90]
[340107226,1728568048199,-157.4884242,0.00048082,30]
[340107227,1728568048220,-1362.41019446,0.00048556,16]
[340107228,1728568048242,-353.87711497,0.00048914,10]
[340107229,1728568048269,-150.0,0.00049,2]
[340107230,1728568048291,-153.0,0.00049041,30]
[340107231,1728568048312,-209.8716294,0.00049041,30]
[340107232,1728568048333,-153.0,0.00049041,30]
[340107233,1728568048354,-151.46966525,0.00049042,18]
[340107234,1728568048379,-500.0,0.00049188,10]
[340107235,1728568048399,-160.951,0.0004921,2]
[340107236,1728568048424,-574.274,0.0004921,2]
[340107237,1728568048445,-752.84302916,0.0004921,2]
[340107238,1728568111022,3229.0,0.00029,2]
[340107239,1728568149268,-152.0,0.00045,120]
[340107264,1728568232051,-429.97761779,0.00048914,7]
[340107266,1728568232063,-70.02238221,0.00048914,7]
[340107269,1728568232078,-466.15697084,0.0004921,2]
[340107271,1728568232091,-369.264248,0.00049517,2]
[340107273,1728568232102,-428.8746413,0.00049863,30]
[340107276,1728568232112,-308.6523137,0.00049863,30]
[340107278,1728568232128,-306.0,0.00049863,30]
[340107280,1728568232138,-156.94912,0.00049863,30]
[340107282,1728568232149,-1050.98245924,0.0005,30]
[340107284,1728568232158,-2199.3,0.0005,120]
[340107286,1728568232167,-719.50444522,0.00050284,7]
[340107300,1728568240220,-157.585,0.00050084,120]
[340107301,1728568240231,-250.0,0.00050084,120]
[340107302,1728568240240,-280.49555478,0.00050284,7]
[340107303,1728568240249,-693.15586226,0.000504,120]
[340107304,1728568240681,-4724.42413674,0.000504,120]
[340107305,1728568240691,-1000.0,0.00050405,14]
[340107306,1728568240700,-1000.0,0.00050412,14]
[340107307,1728568240710,-1000.0,0.00050434,14]
[340107308,1728568240724,-313.86161018,0.00050449,14]
[340107309,1728568240734,-663.7321568,0.00050468,14]
[340107342,1728568243260,-311.13495864,0.00050468,14]
[340107360,1728568246208,-25.13288456,0.00050468,14]
[340107361,1728568246219,-556.26595802,0.00050473,28]
[340107362,1728568246244,-71.25459786,0.00050473,28]
[340107363,1728568255470,201.478527,0.00042654,2]
[340107364,1728568255681,201.478527,0.00042665,2]
[340107365,1728568255920,201.478527,0.00042676,2]
[340107366,1728568256137,201.478527,0.00042687,2]
[340107367,1728568256360,201.478527,0.00042699,2]
[340107368,1728568256587,201.478527,0.0004271,2]
[340107369,1728568256814,201.478527,0.00042721,2]
[340107370,1728568257233,201.478527,0.00042732,2]
[340107371,1728568257624,201.478527,0.00042743,2]
[340107372,1728568257762,201.478527,0.00042755,2]
[340107373,1728568257987,201.478527,0.00042766,2]
[340107374,1728568258215,201.478527,0.00042777,2]
[340107375,1728568258537,201.478527,0.00042788,2]
[340107376,1728568258768,201.478527,0.000428,2]
[340107377,1728568258976,201.478527,0.00042811,2]
[340107378,1728568259253,201.478527,0.00042822,2]
[340107379,1728568259729,201.478527,0.00042833,2]
[340107380,1728568260010,201.478527,0.00042845,2]
[340107381,1728568260229,201.478527,0.00042856,2]
[340107382,1728568260511,201.478527,0.00042867,2]
[340107383,1728568277555,166.049421,0.00034795,2]
[340107407,1728569353256,-166.049421,0.00034795,2]
[340107408,1728569353278,-250.0,0.00038267,2]
[340107409,1728569353298,-525.0,0.00038666,120]
[340107410,1728569353319,-1325.7469724,0.00043335,2]
[340107411,1728569353345,-550.0,0.00044438,30]
[340107412,1728569353366,-550.0,0.00044438,5]
[340107413,1728569353386,-10797.12147966,0.00044439,120]
[340107414,1728569353406,-223.86504,0.00044513,2]
[340107415,1728569353428,-12463.366403,0.0004454,2]
[340107416,1728569353450,-176.183911,0.00044658,2]
[340107417,1728569353474,-332.337823,0.00044658,2]
[340107418,1728569353495,-223.86504,0.00044736,2]
[340107451,1728569432214,-550.0,0.0004603,5]
[340107452,1728569432225,-207.75411618,0.00046031,60]
[340107453,1728569432234,-35663.59663494,0.00046031,31]
[340107500,1728569469738,166.049421,0.00034795,2]
[340107501,1728569493965,1210.97079288,0.00045801,14]
[340107513,1728569836459,969.48493059,0.00028615,2]
[340107565,1728570334155,-4675.0704129,0.00029543,2]
[340107566,1728570354114,-324.9295871,0.00029543,2]
[340107567,1728570354138,-467.17675665,0.00030136,2]
[340107568,1728570354161,-400.0,0.0003047,2]
[340107569,1728570354185,-400.0,0.00030471,2]
[340107570,1728570354209,-2352.10623313,0.00030472,2]
[340107577,1728570521704,2999.999999,0.0002799,2]
[340107590,1728570551139,-1858.03971702,0.0003,7]
[340107591,1728570551160,-2647.89376687,0.00030472,2]
[340107592,1728570551184,-243.0,0.00031315,2]
[340107593,1728570551206,-21507.768523,0.00031316,2]
[340107594,1728570551226,-5000.0,0.000314,2]
[340107595,1728570551249,-2600.080098,0.00031529,2]
[340107596,1728570551273,-2566.33185719,0.00032228,2]
[340107597,1728570551297,-5000.0,0.00032328,2]
[340107598,1728570551320,-164.90187488,0.00033157,2]
[340107599,1728570551343,-5000.0,0.00033257,2]
[340107600,1728570551368,-5000.0,0.00034185,2]
[340107601,1728570551391,-207.75411619,0.00034185,7]
[340107602,1728570551415,-166.049421,0.00034795,2]
[340107603,1728570551439,-5000.0,0.00035114,2]
[340107604,1728570551462,-5000.0,0.00036042,7]
[340107605,1728570551483,-5000.0,0.00036971,7]
[340107606,1728570551505,-2566.33185713,0.0003761,2]
[340107607,1728570551527,-5000.0,0.00037899,7]
[340107608,1728570551548,-5000.0,0.00038828,7]
[340107609,1728570551574,-5000.0,0.00039756,14]
[340107610,1728570551597,-5000.0,0.00040685,14]
[340107611,1728570551618,-164.90187488,0.0004069,2]
[340107612,1728570551639,-303.8,0.00041189,10]
[340107613,1728570551660,-253.17,0.00041189,10]
[340107614,1728570551688,-500.0,0.00041199,31]
[340107615,1728570551710,-500.0,0.00041199,31]
[340107616,1728570551733,-500.0,0.00041199,31]
[340107617,1728570551755,-500.0,0.00041199,31]
[340107618,1728570551778,-500.0,0.00041199,31]
[340107619,1728570551918,-500.0,0.00041199,31]
[340107620,1728570551941,-500.0,0.00041199,31]
[340107621,1728570551963,-500.0,0.00041199,31]
[340107622,1728570551986,-500.0,0.00041199,31]
[340107623,1728570552006,-500.0,0.00041199,31]
[340107624,1728570552029,-500.0,0.00041199,31]
[340107625,1728570552052,-500.0,0.00041199,31]
[340107626,1728570552074,-500.0,0.00041199,31]
[340107627,1728570552096,-500.0,0.00041199,31]
[340107628,1728570552120,-500.0,0.00041199,31]
[340107629,1728570552142,-500.0,0.00041199,31]
[340107630,1728570552165,-500.0,0.00041199,31]
[340107631,1728570552189,-500.0,0.00041199,31]
[340107632,1728570552211,-500.0,0.00041199,31]
[340107633,1728570552235,-500.0,0.00041199,31]
[340107634,1728570552256,-500.0,0.00041199,31]
[340107635,1728570552279,-500.0,0.00041199,31]
[340107636,1728570552302,-500.0,0.00041199,31]
[340107637,1728570552331,-500.0,0.00041199,31]
[340107638,1728570552353,-500.0,0.00041199,31]
[340107639,1728570552376,-500.0,0.00041199,31]
[340107640,1728570552399,-288.34445385,0.00041199,31]
[340107641,1728570552422,-500.0,0.00041199,31]
[340107642,1728570552447,-500.0,0.00041199,31]
[340107643,1728570552471,-500.0,0.00041199,31]
[340107644,1728570552497,-500.0,0.00041199,31]
[340107645,1728570552522,-500.0,0.00041199,31]
[340107646,1728570552547,-500.0,0.00041199,31]
[340107647,1728570552573,-500.0,0.00041199,31]
[340107648,1728570552596,-500.0,0.00041199,31]
[340107649,1728570552619,-500.0,0.00041199,31]
[340107650,1728570552641,-500.0,0.00041199,31]
[340107651,1728570552677,-500.0,0.00041199,31]
[340107652,1728570552711,-500.0,0.00041199,31]
[340107653,1728570552736,-500.0,0.00041199,31]
[340107654,1728570552759,-240.1172868,0.00041199,31]
[340107655,1728570552783,-500.0,0.00041199,31]
[340107656,1728570552808,-500.0,0.00041199,31]
[340107657,1728570552833,-500.0,0.00041199,31]
[340107658,1728570552858,-500.0,0.00041199,31]
[340107659,1728570552882,-500.0,0.00041199,31]
[340107660,1728570552907,-500.0,0.00041199,31]
[340107661,1728570552928,-500.0,0.00041199,31]
[340107662,1728570552949,-500.0,0.00041199,31]
[340107663,1728570552970,-500.0,0.00041199,31]
[340107664,1728570552992,-500.0,0.00041199,31]
[340107665,1728570553014,-500.0,0.00041199,31]
[340107666,1728570553036,-500.0,0.00041199,31]
[340107667,1728570553058,-500.0,0.00041199,31]
[340107668,1728570553084,-500.0,0.00041199,31]
[340107669,1728570553108,-500.0,0.00041199,31]
[340107670,1728570553131,-500.0,0.00041199,31]
[340107671,1728570553155,-500.0,0.00041199,31]
[340107672,1728570553179,-500.0,0.00041199,31]
[340107673,1728570553203,-500.0,0.00041199,31]
[340107674,1728570553228,-500.0,0.00041199,31]
[340107675,1728570553250,-500.0,0.00041199,31]
[340107676,1728570553274,-500.0,0.00041199,31]
[340107677,1728570553298,-500.0,0.00041199,31]
[340107678,1728570553325,-500.0,0.00041199,31]
[340107679,1728570553347,-500.0,0.00041199,31]
[340107680,1728570553370,-500.0,0.00041199,31]
[340107681,1728570553394,-500.0,0.00041199,31]
[340107682,1728570553420,-500.0,0.00041199,31]
[340107683,1728570553442,-500.0,0.00041199,31]
[340107684,1728570553466,-500.0,0.00041199,31]
[340107685,1728570553489,-533.83444539,0.00041199,31]
[340107686,1728570553512,-500.0,0.00041199,31]
[340107687,1728570553536,-500.0,0.00041199,31]
[340107688,1728570553558,-500.0,0.00041199,31]
[340107689,1728570553583,-500.0,0.00041199,31]
[340107690,1728570553603,-8637.69718372,0.000412,120]
[340107691,1728570553625,-8637.6971837,0.000412,120]
[340107692,1728570553650,-34093.7486087,0.00041594,6]
[340107693,1728570553677,-11507.90793168,0.00041603,6]
[340107694,1728570559107,-210.97,0.00041189,10]
[340107695,1728570559130,-2285.36986892,0.00041603,6]
[340107696,1728570559150,-5000.0,0.00041613,14]
[340107697,1728570559171,-2566.33185713,0.00042991,28]
[340107698,1728570559192,-181.710347,0.00044658,2]
[340107699,1728570559213,-315.720931,0.00044658,2]
[340107744,1728570632634,-207.582926,0.00046402,30]
[340107746,1728570632645,-427.236905,0.000465,10]
[340107748,1728570632655,-232.26564181,0.000465,10]
[340107750,1728570632665,-215.0,0.00047,90]
[340107753,1728570632677,-272.0044662,0.00048,120]
[340107755,1728570632687,-164.90187488,0.00048222,2]
[340107757,1728570632697,-207.75411619,0.00048322,60]
[340107759,1728570632707,-13793.2778006,0.00048322,7]
[340107761,1728570632720,-9387.82489032,0.00048322,7]
[340107806,1728570640464,-5127.29838614,0.00048322,7]
[340107818,1728570687346,181.710347,0.00044658,2]
[340107827,1728571106743,1801.51507041,0.00028619,2]
[340107828,1728571156089,160.37,0.00028,2]
[340107834,1728571443938,158.5138344,0.00028,2]
[340107839,1728571545148,-3198.48492959,0.00028619,2]
[340107840,1728571545173,-2600.080098,0.00029627,2]
[340107841,1728571545194,-300.0,0.00029918,2]
[340107842,1728571545216,-300.0,0.00029918,2]
[340107843,1728571545239,-5000.0,0.00029919,2]
[340107844,1728571545272,-6626.656078,0.00030505,2]
[340107845,1728571545294,-5000.0,0.00031219,2]
[340107846,1728571545316,-5000.0,0.00032519,2]
[340107847,1728571545338,-5000.0,0.00033819,2]
[340107848,1728571545360,-207.75411619,0.00033819,7]
[340107849,1728571545383,-2763.97444584,0.00034695,2]
[340107850,1728571545405,-166.049421,0.00034795,2]
[340107851,1728571545426,-5000.0,0.00035119,2]
[340107852,1728571545447,-5000.0,0.00036419,7]
[340107853,1728571545469,-5000.0,0.00037719,7]
[340107854,1728571545491,-164.90187488,0.00038919,2]
[340107855,1728571545514,-5000.0,0.00039019,7]
[340107856,1728571545538,-2763.97444583,0.00039724,2]
[340107857,1728571545562,-201.478527,0.00040147,2]
[340107858,1728571545586,-201.478527,0.00040158,2]
[340107859,1728571545610,-201.478527,0.00040169,2]
[340107860,1728571545633,-201.478527,0.00040179,2]
[340107861,1728571545657,-201.478527,0.0004019,2]
[340107862,1728571545679,-201.478527,0.000402,2]
[340107863,1728571545703,-201.478527,0.00040211,2]
[340107864,1728571545729,-201.478527,0.00040221,2]
[340107865,1728571545753,-201.478527,0.00040232,2]
[340107866,1728571545775,-201.478527,0.00040243,2]
[340107867,1728571545799,-201.478527,0.00040253,2]
[340107868,1728571545824,-201.478527,0.00040264,2]
[340107869,1728571545847,-201.478527,0.00040274,2]
[340107870,1728571545871,-201.478527,0.00040285,2]
[340107871,1728571545894,-201.478527,0.00040296,2]
[340107872,1728571545918,-201.478527,0.00040306,2]
[340107873,1728571545943,-201.478527,0.00040317,2]
[340107874,1728571545966,-5000.0,0.00040319,14]
[340107875,1728571545991,-201.478527,0.00040327,2]
[340107876,1728571546014,-201.478527,0.00040338,2]
[340107877,1728571546039,-201.478527,0.00040348,2]
[340107878,1728571546063,-5182.61831022,0.000412,120]
[340107879,1728571546090,-873.80334293,0.000412,120]
[340107880,1728571550105,-4308.81496729,0.000412,120]
[340107881,1728571550131,-1336.87129596,0.00041619,14]
[340107886,1728571592112,-954.8214363,0.00041619,14]
[340107902,1728571752134,-166.049421,0.00034795,2]
[340107903,1728571752167,-757.0458255,0.00041411,8]
[340107904,1728571752189,-2708.30726774,0.00041619,14]
[340107905,1728571752211,-453.92496738,0.00041825,8]
[340107906,1728571752232,-3109.57098614,0.000439,120]
[340107907,1728571752252,-10000.0,0.00044,30]
[340107908,1728571752274,-326.276241,0.00044658,2]
[340107909,1728571752295,-181.710347,0.00044658,2]
[340107910,1728571771197,5614.14065947,0.000388,120]
[340107911,1728571771218,5604.60731383,0.000388,120]
[340107912,1728571771239,5543.76001205,0.000388,120]
[340107913,1728571771263,5248.69180597,0.000388,120]
[340107972,1728571839991,-214.0,0.000374,120]
[340107973,1728571840002,-8027.98528916,0.000388,30]
[340108023,1728571843710,-106.0912707,0.000388,30]
[340108028,1728571846646,-383.52020004,0.000388,30]
[340108067,1728572289051,4650.0,0.00021022,2]
[340108068,1728572297405,5000.0,0.00021022,2]
[340108069,1728572312985,5000.0,0.00021022,2]
[340108070,1728572328334,5000.0,0.00021022,2]
[340108074,1728572360152,5000.0,0.00021022,2]
[340108075,1728572375944,5000.0,0.00021022,2]
[340108076,1728572391270,5000.0,0.00021022,2]
[340108078,1728572406730,5000.0,0.00021022,2]
[340108080,1728572569058,5000.0,0.00021022,2]
[340108082,1728572577155,5000.0,0.00021022,2]
[340108083,1728572585159,5000.0,0.00021022,2]
[340108084,1728572593227,5000.0,0.00021022,2]
[340108085,1728572601310,5000.0,0.00021022,2]
[340108086,1728572609337,366.11862513,0.00021022,2]
[340108087,1728572617354,2375.96418682,0.00021022,2]
[340108090,1728572738147,-387.66403281,0.00034722,2]
[340108091,1728572829128,-173.0,0.00034722,2]
[340108092,1728572829152,-248.55957501,0.00034722,2]
[340108106,1728572950228,-400.0,0.00034722,2]
[340108107,1728572950254,-6979.0580248,0.00034723,2]
[340108108,1728572950278,-164.555633,0.00034795,2]
[340108109,1728572950300,-169.642857,0.00034945,2]
[340108110,1728572950322,-302.8183302,0.00035,2]
[340108111,1728572950353,-169.642857,0.00035248,2]
[340108112,1728572950388,-302.8183302,0.0003535,2]
[340108113,1728572950419,-169.642857,0.00035552,2]
[340108114,1728572950444,-302.8183302,0.000357,2]
[340108115,1728572950469,-169.642857,0.00035855,2]
[340108116,1728572950493,-896.0,0.00036,15]
[340108117,1728572950518,-302.8183302,0.0003605,2]
[340108118,1728572950541,-169.642857,0.00036159,2]
[340108119,1728572950564,-302.60653891,0.000364,2]
[340108120,1728572950588,-169.642857,0.00036462,2]
[340108121,1728572950613,-169.642857,0.00036766,2]
[340108122,1728572950639,-2000.91608085,0.00038,20]
[340108123,1728572950662,-164.90187488,0.000405,2]
[340108124,1728572950685,-401.21229,0.00041,120]
[340108125,1728572950708,-1000.0,0.00041,120]
[340108126,1728572950730,-29392.84614281,0.000412,120]
[340108127,1728572950753,-29392.84614277,0.000412,120]
[340108128,1728572950777,-500.0,0.00041371,31]
[340108129,1728572950799,-500.0,0.00041371,31]
[340108130,1728572950823,-500.0,0.00041371,31]
[340108131,1728572950847,-500.0,0.00041371,31]
[340108132,1728572950871,-500.0,0.00041371,31]
[340108133,1728572950894,-500.0,0.00041371,31]
[340108134,1728572950918,-500.0,0.00041371,31]
[340108135,1728572950942,-500.0,0.00041371,31]
[340108136,1728572950964,-500.0,0.00041371,31]
[340108137,1728572950987,-500.0,0.00041371,31]
[340108138,1728572951010,-500.0,0.00041371,31]
[340108139,1728572951037,-500.0,0.00041371,31]
[340108140,1728572951061,-500.0,0.00041371,31]
[340108141,1728572951084,-500.0,0.00041371,31]
[340108142,1728572951107,-500.0,0.00041371,31]
[340108143,1728572951133,-500.0,0.00041371,31]
[340108144,1728572951156,-500.0,0.00041371,31]
[340108145,1728572951180,-500.0,0.00041371,31]
[340108146,1728572951207,-474.01172958,0.00041371,31]
[340108147,1728572951231,-500.0,0.00041371,31]
[340108148,1728572951254,-500.0,0.00041371,31]
[340108149,1728572951276,-500.0,0.00041371,31]
[340108150,1728572951302,-500.0,0.00041371,31]
[340108151,1728572951326,-500.0,0.00041371,31]
[340108152,1728572951351,-365.84169954,0.00041371,31]
[340108153,1728572951375,-500.0,0.00041371,31]
[340108154,1728572951396,-500.0,0.00041371,31]
[340108155,1728572951423,-500.0,0.00041371,31]
[340108156,1728572951444,-500.0,0.00041371,31]
[340108157,1728572951467,-500.0,0.00041371,31]
[340108158,1728572951491,-43876.0089063,0.00041372,6]
[340108159,1728572951515,-77366.84313359,0.00041372,6]
[340108160,1728572963117,-303.15,0.0004119,10]
[340108161,1728572963153,-5614.66598031,0.00041372,6]
[340108162,1728572963178,-252.63,0.00041372,10]
[340108163,1728572963202,-557.97436933,0.00041381,31]
[340108164,1728572963225,-196.13708695,0.00041381,31]
[340108165,1728572963249,-500.0,0.00041381,31]
[340108166,1728572963273,-557.97436933,0.00041381,31]
[340108167,1728572963296,-267.19861856,0.00041381,31]
[340108168,1728572963320,-511.12034347,0.00041381,31]
[340108169,1728572963346,-557.97436933,0.00041381,31]
[340108170,1728572963371,-557.97436933,0.00041381,31]
[340108171,1728572963394,-557.97436933,0.00041381,31]
[340108172,1728572963420,-557.97436933,0.00041381,31]
[340108173,1728572963445,-557.97436933,0.00041381,31]
[340108174,1728572963469,-557.97436933,0.00041381,31]
[340108175,1728572963491,-557.97436933,0.00041381,31]
[340108176,1728572963519,-557.97436933,0.00041381,31]
[340108177,1728572963543,-557.97436933,0.00041381,31]
[340108178,1728572963567,-557.97436933,0.00041381,31]
[340108179,1728572963591,-573.91649416,0.00041381,31]
[340108180,1728572963611,-573.91649416,0.00041381,31]
[340108181,1728572963635,-573.91649416,0.00041381,31]
[340108182,1728572963658,-573.91649416,0.00041381,31]
[340108183,1728572963680,-573.91649416,0.00041381,31]
[340108184,1728572963703,-573.91649416,0.00041381,31]
[340108185,1728572963727,-573.91649416,0.00041381,31]
[340108186,1728572963750,-573.91649416,0.00041381,31]
[340108187,1728572963772,-573.91649416,0.00041381,31]
[340108188,1728572963796,-573.91649416,0.00041381,31]
[340108189,1728572963822,-573.91649416,0.00041381,31]
[340108190,1728572963845,-613.30292023,0.00041381,31]
[340108191,1728572963867,-613.30292023,0.00041381,31]
[340108192,1728572963892,-613.30292023,0.00041381,31]
[340108193,1728572963913,-33661.46053421,0.00041382,2]
[340108194,1728572968163,-160.99201655,0.00041381,31]
[340108195,1728572968188,-9159.22095545,0.00041382,2]
[340108196,1728572973103,-615.01,0.00041372,30]
[340108197,1728572973126,-53042.44694714,0.00041382,2]
[340108237,1728573031774,-38275.33776418,0.00039635,5]
[340108239,1728573031784,-40477.88829922,0.00041,120]
[340108286,1728573037992,-29650.11170078,0.00041,120]
[340108287,1728573038003,-2359.35136437,0.00041272,28]
[340108288,1728573038015,-37729.64508826,0.00041382,2]
[340108289,1728573038026,-672.59654361,0.000417,2]
[340108290,1728573038038,-844.84,0.0004177,30]
[340108291,1728573038048,-500.0,0.00041773,10]
[340108292,1728573038058,-187.039033,0.00041779,31]
[340108293,1728573038068,-500.0,0.00041779,31]
[340108294,1728573038079,-500.0,0.00041779,31]
[340108295,1728573038091,-500.0,0.00041779,31]
[340108296,1728573038101,-500.0,0.00041779,31]
[340108297,1728573038111,-500.0,0.00041779,31]
[340108298,1728573038122,-207.78424043,0.00041779,31]
[340108299,1728573038132,-500.0,0.00041779,31]
[340108300,1728573038144,-500.0,0.00041779,31]
[340108301,1728573038155,-163.77908106,0.00041779,31]
[340108302,1728573038165,-485.09352217,0.00041779,31]
[340108303,1728573038182,-500.0,0.00041779,31]
[340108304,1728573038192,-500.0,0.00041779,31]
[340108305,1728573038203,-500.0,0.00041779,31]
[340108306,1728573038213,-500.0,0.00041779,31]
[340108307,1728573038225,-500.0,0.00041779,31]
[340108308,1728573038238,-123238.86853021,0.0004178,6]
[340108309,1728573038398,-27848.91547433,0.0004178,6]
[340108310,1728573038413,-1452.66675199,0.0004178,6]
[340108317,1728573039849,-44901.58932147,0.0004178,6]
[340108318,1728573039861,-53179.94426219,0.0004178,6]
[340108319,1728573040211,-8837.55802378,0.0004178,6]
[340108337,1728573045875,-54729.41507582,0.0004178,6]
[340108342,1728573067081,334.4258393,0.00035301,2]
[340108361,1728573410011,350.0,0.00021022,2]
[340108374,1728573935148,-365.16343428,0.00021913,2]
[340108375,1728573954109,-78.50009618,0.00021913,2]
[340108376,1728573954141,-169.15519524,0.0003,2]
[340108381,1728574038147,-1390.22040377,0.0003,2]
[340108382,1728574044100,-440.62440099,0.0003,2]
[340108383,1728574044123,-223.86504,0.00031537,2]
[340108384,1728574044144,-399.919902,0.00032108,2]
[340108385,1728574044165,-9.16581192,0.00032277,2]
[340108386,1728574047105,-151.00289708,0.00032277,2]
[340108387,1728574047130,-160.168709,0.00032517,2]
[340108388,1728574047155,-160.168709,0.00032757,2]
[340108389,1728574047179,-160.168709,0.00032998,2]
[340108390,1728574047202,-400.0,0.00032999,2]
[340108391,1728574047223,-400.0,0.00032999,2]
[340108392,1728574047245,-2519.67798359,0.00033,2]
[340108395,1728574117506,49688.12934354,0.00021,60]
[340108400,1728574161100,-178.07614006,0.00023,2]
[340108405,1728574164150,-2326.59755798,0.00023,2]
[340108406,1728574164174,-400.0,0.00032999,2]
[340108407,1728574164198,-227.0,0.00032999,2]
[340108408,1728574164218,-1180.32201641,0.00033,2]
[340108409,1728574164240,-3000.0,0.00033,10]
[340108410,1728574164262,-160.168709,0.00033238,2]
[340108411,1728574164286,-160.168709,0.00033478,2]
[340108412,1728574164312,-160.168709,0.00033719,2]
[340108413,1728574164336,-160.168709,0.00033959,2]
[340108414,1728574164359,-165.587834,0.00034795,2]
[340108415,1728574164381,-5000.0,0.00035,30]
[340108416,1728574164403,-3000.0,0.00035,22]
[340108417,1728574164424,-3000.0,0.00035,13]
[340108418,1728574164445,-3865.93341239,0.00035592,2]
[340108419,1728574165107,-520.98075095,0.00035592,2]
[340108420,1728574165131,-168.09463703,0.00035592,2]
[340108421,1728574165153,-6077.35989602,0.00035692,2]
[340108423,1728574174122,-11945.82707378,0.00035692,2]
[340108424,1728574174143,-155.81558713,0.00035692,14]
[340108425,1728574174165,-560.0,0.00036299,2]
[340108426,1728574174186,-5200.0,0.000375,40]
[340108427,1728574174207,-1069.5423211,0.00039,120]
[340108466,1728574231928,-200.0,0.00038999,30]
[340108468,1728574231939,-199.91990201,0.00039,120]
[340108470,1728574231951,-337.58176813,0.00039,120]
[340108532,1728574238276,-385.87194266,0.00039,120]
[340108534,1728574238411,-22847.63351634,0.00039,120]
[340108535,1728574238422,-558.66432823,0.0003965,2]
[340108536,1728574238432,-3802.56475442,0.0004,50]
[340108540,1728574240171,-1197.43524558,0.0004,50]
[340108541,1728574240182,-22516.29909787,0.0004,120]
[340108542,1728574240196,-1241.75132697,0.0004,120]
[340108543,1728574240349,-3001.36000845,0.0004,120]
[340108562,1728574243169,-1106.03809214,0.0004,120]
[340108563,1728574243179,-155.81558714,0.0004,30]
[340108564,1728574243190,-369.65843414,0.00040724,120]
[340108565,1728574243201,-2774.91244867,0.00041198,31]
[340108566,1728574243212,-754.05304074,0.00041199,120]
[340108567,1728574243224,-15655.00883285,0.000412,120]
[340108568,1728574243236,-270.07175746,0.000412,120]
[340108569,1728574243250,-511.33648474,0.000412,120]
[340108570,1728574243261,-1506.73271861,0.000412,120]
[340108573,1728574243445,-564.24,0.000412,120]
[340108580,1728574246046,-154.46893375,0.000412,120]
[340108581,1728574246058,-6031.92192746,0.000412,120]
[340108582,1728574246067,-210.52,0.00041362,10]
[340108583,1728574246077,-20913.3025263,0.00041372,6]
[340108584,1728574246086,-31504.3332332,0.00041372,6]
[340108585,1728574246095,-23875.7121061,0.00041382,2]
[340108586,1728574246224,-731.71233599,0.000417,2]
[340108587,1728574246234,-20913.3025263,0.0004176,6]
[340108588,1728574246244,-31504.3332332,0.0004176,6]
[340108589,1728574246254,-495.4489683,0.00041767,31]
[340108590,1728574246266,-500.0,0.00041767,31]
[340108591,1728574246278,-500.0,0.00041767,31]
[340108592,1728574246289,-386.32868631,0.00041767,31]
[340108593,1728574246299,-500.0,0.00041767,31]
[340108594,1728574246310,-500.0,0.00041767,31]
[340108595,1728574246320,-500.0,0.00041767,31]
[340108596,1728574246330,-500.0,0.00041767,31]
[340108597,1728574246342,-500.0,0.00041767,31]
[340108598,1728574246351,-500.0,0.00041767,31]
[340108599,1728574246368,-20913.3025263,0.0004177,6]
[340108600,1728574246379,-31504.3332332,0.0004177,6]
[340108601,1728574246391,-500.0,0.00041773,7]